Cogmind - Beta 13 @@@ ROGUE MODE // 2024.04.08 @ 01:36:06 Player: SnowyImp Result: Destroyed by P-60 Hacker with Shock Rifle Performance ------------- Evolutions (2) 1000 Regions Visited (7) 1400 Robots Destroyed (22) 110 Value Destroyed (817) 817 Prototype IDs (3) 60 Alien Tech Used (0) 0 Bonus (412) 412 TOTAL SCORE: 3799 Bonus ------- Follower Combat Kills 77 Entered Garrisons 200 Aligned with FarCom 300 Friendly Fire -165 Cogmind --------- Core Integrity 0/550 Matter 295/300 Energy 100/100 System Corruption 6% Temperature Cool (0) Movement Flying (35) Location -8/Garrison Parts ------- > --- POWER (1) -------- (None) > --- PROPULSION (4) --- Improved VTOL Module > --- UTILITY (4) ------ Advanced Visual Processing Unit Core Analyzer > --- WEAPON (2) ------- Heavy Hammer > --- INVENTORY (5) ---- Relay Coupler [Grunt] (22) Relay Coupler [Sentry] (17) Field Lobotomy Kit (5) Peak State ------------ > --- POWER ------------ Light Nuclear Core > --- PROPULSION ------- Flight Unit Flight Unit Flight Unit Improved VTOL Module > --- UTILITY ---------- Advanced Visual Processing Unit Core Analyzer Advanced ECM Suite Improved Propulsion Shielding > --- WEAPON ----------- Field Lobotomy Kit Chainsword > --- INVENTORY -------- Relay Coupler [Grunt] Relay Coupler [Sentry] Heavy Hammer [Rating: 38] Favorites ----------- Power Ion Engine Engine Ion Engine Power Core Light Nuclear Core Propulsion Flight Unit Wheel Compact Wheel Hover Unit Aerolev Unit Flight Unit Flight Unit Utility Core Analyzer Device Advanced ECM Suite Processor Core Analyzer Protection Improved Propulsion Shielding Weapon Beam Cannon Energy Gun Medium Laser Energy Cannon Beam Cannon Special Weapon Field Lobotomy Kit Impact Weapon Heavy Hammer Slashing Weapon Chainsword Build | -11 -10 -10 -10 -9 -8 -8 -8 ------- Run | Yrd Mat Min Exi Min Mat Sto Gar Slots Evolved 4 | . . . . . 4 . . Power . | . . . . . . . . Propulsion 2 | . . . . . 2 . . Utility 2 | . . . . . 2 . . Weapon . | . . . . . . . . Parts Attached 47 | 5 9 6 2 3 7 6 9 Power 5 | 1 2 . . . 1 . 1 Engine 4 | 1 2 . . . 1 . . Core 1 | . . . . . . . 1 Reactor . | . . . . . . . . Propulsion 15 | 2 1 4 . . 2 4 2 Treads . | . . . . . . . . Leg . | . . . . . . . . Wheel 3 | 2 1 . . . . . . Hover 1 | . . . . . . 1 . Flight 11 | . . 4 . . 2 3 2 Utility 4 | . . . . 2 1 1 . Device 1 | . . . . 1 . . . Storage . | . . . . . . . . Processor 2 | . . . . 1 . 1 . Hackware . | . . . . . . . . Protection 1 | . . . . . 1 . . Artifact . | . . . . . . . . Weapon 23 | 2 6 2 2 1 3 1 6 Energy Gun 5 | 2 3 . . . . . . Energy Cannon 7 | . 3 2 1 . 1 . . Ballistic Gun . | . . . . . . . . Ballistic Cannon . | . . . . . . . . Launcher . | . . . . . . . . Special Weapon 4 | . . . 1 . . . 3 Impact Weapon 5 | . . . . . 1 1 3 Slashing Weapon 2 | . . . . 1 1 . . Piercing Weapon . | . . . . . . . . Special Melee Weapon . | . . . . . . . . Unidentified Prototypes 3 | . . . 1 . . 2 . Parts Lost 14 | . 2 4 . . . . 8 Power 3 | . 1 1 . . . . 1 Propulsion 8 | . 1 2 . . . . 5 Utility 1 | . . . . . . . 1 Weapon 2 | . . 1 . . . . 1 Highest Loss Streak 7 | . 1 3 . . . . 7 To Critical Strikes . | . . . . . . . . Average Slot Usage (%) 68 | . 69 51 57 57 63 86 89 Engine 7 | . 14 6 . . 4 9 5 Wheel 7 | . 27 6 . . . . . Flight 19 | . . 10 28 28 28 35 31 Device 3 | . . . . . 9 9 8 Processor 5 | . . . . 1 9 12 18 Protection 2 | . . . . . . 9 7 Energy Gun 2 | . 9 . . . . . . Energy Cannon 14 | . 17 27 28 25 . . . Impact Weapon 1 | . . . . . . 1 8 Slashing Weapon 3 | . . . . 1 9 9 7 Naked Turns . | . . . . . . . . Heaviest Build 21 | 8 11 11 6 6 13 16 21 Greatest Support 32 | 32 32 16 8 8 16 17 17 Greatest Overweight (x) 4 | . . 1 . . . 4 1 Average Overweight (x) . | . . . . . . . . Largest Inventory Capacity 5 | 5 5 5 5 5 5 5 5 Average Capacity 5 | 5 5 5 5 5 5 5 5 Most Carried 5 | 1 5 5 4 5 5 5 5 Average Carried 3 | . 3 4 3 4 4 4 3 Final Capacity 5 | 5 5 5 5 5 5 5 5 Final Carried 5 | 1 5 3 4 5 5 4 3 Class Distribution -------------------- 68% | Mutant 29% | Scavenger-Sprinter Dominant Class ---------------- Mutant | -10/Materials Mutant | -10/Mines Mutant | -10/Exiles Mutant | -9/Mines Scavenger-Sprinter | -8/Materials Scavenger-Sprinter | -8/Storage Scavenger-Sprinter | -8/Garrison Resources | -11 -10 -10 -10 -9 -8 -8 -8 ----------- Run | Yrd Mat Min Exi Min Mat Sto Gar Matter Collected 643 | 250 60 70 . 50 14 45 154 Remotely . | . . . . . . . . Salvage Created 638 | . 120 115 . . . 45 358 Parts 35 | . 9 8 . . . 2 16 Haulers Intercepted . | . . . . . . . . Recyclers Shooed . | . . . . . . . . Parts Field Recycled . | . . . . . . . . Retrieved Matter . | . . . . . . . . Parts Self-Destructed . | . . . . . . . . Prevented . | . . . . . . . . Kills | -11 -10 -10 -10 -9 -8 -8 -8 ------- Run | Yrd Mat Min Exi Min Mat Sto Gar Combat Hostiles Destroyed 21 | . 5 7 . . . 1 8 Melee 8 | . . . . . . 1 7 Guns 2 | . 2 . . . . . . Cannons 10 | . 3 7 . . . . . Classes Destroyed 5 | . 2 1 . . . . 2 Swarmer 11 | . 3 6 . . . . 2 Grunt 7 | . 2 . . . . 1 4 Sentry 1 | . . . . . . . 1 Demolisher 1 | . . 1 . . . . . Programmer 1 | . . . . . . . 1 Thug 1 | . . . . . . . 1 Best Kill Streak 3 | . 3 3 . . . 1 3 Combat Bots Only 3 | . 3 3 . . . 1 3 Max Kills in Single Turn 1 | . 1 1 . . . 1 1 Gunslinging . | . . . . . . . . Exploded . | . . . . . . . . Melee 1 | . . . . . . 1 1 Uniques/NPCs Destroyed . | . . . . . . . . Combat | -11 -10 -10 -10 -9 -8 -8 -8 -------- Run | Yrd Mat Min Exi Min Mat Sto Gar Hostile Shots Fired 175 | . 32 37 . . . 2 104 Missed 55 | . 6 13 . . . 2 34 Damage Taken 1783 | . 265 475 . . . . 1043 Core 770 | . 23 188 . . . . 559 Absorbed by Shields . | . . . . . . . . Redirected to Shielding 103 | . . . . . . . 103 Core Remaining (%) 57 | 100 . . . 15 . . . Volleys Fired 26 | . 11 15 . . . . . Largest 2 | . 2 2 . . . . . Hottest 120 | . 120 120 . . . . . Shots Fired 51 | . 22 29 . . . . . Gun 12 | . 12 . . . . . . Cannon 39 | . 10 29 . . . . . Launcher . | . . . . . . . . Special . | . . . . . . . . Kinetic . | . . . . . . . . Thermal 51 | . 22 29 . . . . . Explosive . | . . . . . . . . Electromagnetic . | . . . . . . . . Robot Hit Streak 7 | . 6 7 . . . . . Robot Miss Streak 4 | . 2 4 . . . . . Penetration Max . | . . . . . . . . Secondary Targets . | . . . . . . . . Shots Hit Robots 57 | . 13 15 . . 1 1 27 Core Hits 26 | . 8 9 . . . 1 8 Critical Kills 1 | . . . . . . . 1 Critical Parts Destroyed . | . . . . . . . . Critical Strikes 3 | . . . . . . . 3 Smash 1 | . . . . . . . 1 Sever 2 | . . . . . . . 2 Melee Attacks 59 | . . . . . 4 11 44 Impact 21 | . . . . . . . 21 Slashing 38 | . . . . . 4 11 23 Piercing . | . . . . . . . . Sneak Attacks 1 | . . . . . . . 1 Combat Hostiles . | . . . . . . . . Follow-up Attacks 1 | . . . . . . . 1 Damage Inflicted 1562 | . 180 260 . . 50 43 1029 Guns 94 | . 94 . . . . . . Cannons 346 | . 86 260 . . . . . Explosions . | . . . . . . . . Melee 1122 | . . . . . 50 43 1029 Ramming . | . . . . . . . . Kinetic . | . . . . . . . . Thermal 440 | . 180 260 . . . . . Explosive . | . . . . . . . . Electromagnetic . | . . . . . . . . Impact 474 | . . . . . . . 474 Slashing 648 | . . . . . 50 43 555 Piercing . | . . . . . . . . Highest Corruption 6 | . . . . . 1 1 6 Average Corruption 1 | . . . . . 1 1 1 Corruption Purged . | . . . . . . . . Corruption Blocked . | . . . . . . . . Effects 7 | . . . . . . 1 6 Message Errors 1 | . . . . . . . 1 Matter Fused 3 | . . . . . . 1 2 Heat Flow Errors 1 | . . . . . . . 1 Energy Discharges 2 | . . . . . . . 2 Overload Shots . | . . . . . . . . Overflow Damage 99 | . 14 10 . . 15 . 60 Projectiles 24 | . 14 10 . . . . . Explosions . | . . . . . . . . Melee 75 | . . . . . 15 . 60 Knockbacks 1 | . . . . . . . 1 Impact 1 | . . . . . . . 1 Kinetic . | . . . . . . . . Secondary . | . . . . . . . . Self-Inflicted Damage . | . . . . . . . . Shots . | . . . . . . . . Rammed . | . . . . . . . . Targets Rammed . | . . . . . . . . Kicked . | . . . . . . . . Crushed . | . . . . . . . . Highest Temperature 225 | . 220 225 . . . . 161 Average Temperature 96 | . 104 93 . . . . 73 Received Heat Transfer 222 | . 90 15 . . . . 117 Siege Activations . | . . . . . . . . Robots Corrupted . | . . . . . . . . Combat Hostiles . | . . . . . . . . Parts Fried . | . . . . . . . . Impact Corruptions 4 | . . . . . . . 4 Robots Melted . | . . . . . . . . Combat Hostiles . | . . . . . . . . Parts Melted 2 | . . 2 . . . . . Heat Transferred 1000 | . 445 555 . . . . . Parts Sabotaged . | . . . . . . . . Parts Stolen . | . . . . . . . . Parts Stripped . | . . . . . . . . Power Chain Reactions . | . . . . . . . . Alert | -11 -10 -10 -10 -9 -8 -8 -8 ------- Run | Yrd Mat Min Exi Min Mat Sto Gar Peak Influence 384 | . 252 289 . . 30 147 384 Initial 95 | . . 94 . . . 9 95 Average 148 | . 140 216 . . 13 87 275 Maximum Alert Level 1 | . 1 1 . . . . 1 Low Security (%) 52 | 100 49 17 . 100 100 100 17 Level 1 47 | . 50 82 . . . . 82 Level 2 . | . . . . . . . . Level 3 . | . . . . . . . . Level 4 . | . . . . . . . . Level 5 . | . . . . . . . . High Security . | . . . . . . . . Max Security . | . . . . . . . . Squads Dispatched 9 | . 3 . . 1 3 2 . Investigation 5 | . . . . 1 2 2 . Extermination . | . . . . . . . . Reinforcement 3 | . 3 . . . . . . Assault . | . . . . . . . . Garrison 1 | . . . . . 1 . . Intercept . | . . . . . . . . Searches Triggered . | . . . . . . . . Construction Impeded . | . . . . . . . . Haulers Reinforced . | . . . . . . . . Active Scanning Responses . | . . . . . . . . Cargo Convoy Interrupts . | . . . . . . . . Stealth | -11 -10 -10 -10 -9 -8 -8 -8 --------- Run | Yrd Mat Min Exi Min Mat Sto Gar Distress Signals 7 | . 3 . . . 2 2 . Communications Jammed . | . . . . . . . . Distress Signals . | . . . . . . . . Times Spotted 57 | . 16 11 . 2 2 7 19 Peak Tracking Total 5 | . 4 3 . 2 4 5 4 Tactical Retreats 8 | . 3 2 . . . 1 2 Traps | -11 -10 -10 -10 -9 -8 -8 -8 ------- Run | Yrd Mat Min Exi Min Mat Sto Gar Traps Triggered 5 | . 2 . . . . 1 2 Indirectly . | . . . . . . . . Trap Hack Attempts . | . . . . . . . . Triggered . | . . . . . . . . Disarmed . | . . . . . . . . Reprogrammed . | . . . . . . . . Reused . | . . . . . . . . Traps Extracted . | . . . . . . . . Installed . | . . . . . . . . Triggered . | . . . . . . . . Machines | -11 -10 -10 -10 -9 -8 -8 -8 ---------- Run | Yrd Mat Min Exi Min Mat Sto Gar Machines Disabled 4 | . 1 . . . . 2 1 Max in Single Turn 1 | . 1 . . . . 1 1 Garrison Relay 1 | . . . . . . . 1 Machines Repaired . | . . . . . . . . Machines Dismantled . | . . . . . . . . Machines Sabotaged . | . . . . . . . . Overloaded Fab Kills . | . . . . . . . . Hacking | -11 -10 -10 -10 -9 -8 -8 -8 --------- Run | Yrd Mat Min Exi Min Mat Sto Gar Machines Accessed 16 | . 3 . . 1 3 7 2 Terminals 13 | . 3 . . . 2 6 2 Fabricators . | . . . . . . . . Repair Stations . | . . . . . . . . Recycling Units . | . . . . . . . . Scanalyzers 1 | . . . . . 1 . . Garrison Access 1 | . . . . . . 1 . Total Hacks 38 | . 6 . . 1 11 16 4 Successful 17 | . 1 . . 1 7 7 1 Failed 21 | . 5 . . . 4 9 3 Catastrophic 1 | . . . . . . 1 . Database Lockouts . | . . . . . . . . Manual 27 | . 6 . 1 . 8 12 . Terminals 33 | . 6 . . . 8 15 4 Fabricators . | . . . . . . . . Repair Stations . | . . . . . . . . Recycling Units . | . . . . . . . . Scanalyzers 3 | . . . . . 3 . . Garrison Access 1 | . . . . . . 1 . Terminal Hacks 5 | . . . . 1 2 1 1 Part Schematic 1 | . . . . . 1 . . Open Door 1 | . . . . 1 . . . Level Access Points 1 | . . . . . . 1 . Branch Access Points 1 | . . . . . 1 . . Patrol Navigation 1 | . . . . . . . 1 Fabricator Hacks . | . . . . . . . . Repair Station Hacks . | . . . . . . . . Recycling Unit Hacks . | . . . . . . . . Scanalyzer 3 | . . . . . 3 . . Insert Component 2 | . . . . . 2 . . Analyze 1 | . . . . . 1 . . Garrison Access Hacks 1 | . . . . . . 1 . Unlock Access 1 | . . . . . . 1 . Unauthorized Hacks 8 | . 1 . . . 2 5 . Terminals 8 | . 1 . . . 2 5 . Assimilate 4 | . 1 . . . . 3 . Botnet 4 | . . . . . 2 2 . Fabricators . | . . . . . . . . Repair Stations . | . . . . . . . . Recycling Units . | . . . . . . . . Scanalyzers . | . . . . . . . . Garrison Access . | . . . . . . . . Data Cores Recovered . | . . . . . . . . Used . | . . . . . . . . Hacking Detections 12 | . 3 . . . 3 4 2 Full Trace Events 4 | . 1 . . . 1 2 . Feedback Events 1 | . . . . . 1 . . Corruption 1 | . . . . . 1 . . Feedback Blocked . | . . . . . . . . Robot Schematics Acquired . | . . . . . . . . Robots Built . | . . . . . . . . Authchips . | . . . . . . . . Time . | . . . . . . . . Total Robot Build Rating . | . . . . . . . . Part Schematics Acquired 2 | . . . . . 2 . . Parts Built . | . . . . . . . . Authchips . | . . . . . . . . Time . | . . . . . . . . Total Part Build Rating . | . . . . . . . . Parts Repaired . | . . . . . . . . Time . | . . . . . . . . Parts Recycled . | . . . . . . . . Recycled Matter . | . . . . . . . . Retrieved Matter . | . . . . . . . . Retrieved Components . | . . . . . . . . Parts Scanalyzed 1 | . . . . . 1 . . Part Schematics Acquired 1 | . . . . . 1 . . Parts Damaged . | . . . . . . . . Bothacking | -11 -10 -10 -10 -9 -8 -8 -8 ------------ Run | Yrd Mat Min Exi Min Mat Sto Gar Used RIF Installer . | . . . . . . . . Robots Hacked . | . . . . . . . . Non-combat . | . . . . . . . . Combat . | . . . . . . . . Robot Hacks Applied . | . . . . . . . . Relay Couplers Released 4 | . . . . . . . 4 Machine Destruction 4 | . . . . . . . 4 Fabnet Peak Effective % . | . . . . . . . . Robots Rewired . | . . . . . . . . Allies Hacked . | . . . . . . . . Hacks Repelled . | . . . . . . . . Allies | -11 -10 -10 -10 -9 -8 -8 -8 -------- Run | Yrd Mat Min Exi Min Mat Sto Gar Total Allies 7 | . . . . 3 . 4 . Largest Group 3 | . . . . 3 3 3 3 Highest-Rated Group 93 | . . . . 40 40 93 93 Highest-Rated Ally 31 | . . . . 16 16 31 31 Total Orders . | . . . . . . . . Ally Attacks 30 | . . . . 5 14 . 11 Total Damage 406 | . . . . 50 166 . 190 Kills 3 | . . . . . 1 . 2 Allies Corrupted . | . . . . . . . . Allies Melted . | . . . . . . . . Intel | -11 -10 -10 -10 -9 -8 -8 -8 ------- Run | Yrd Mat Min Exi Min Mat Sto Gar Robot Analysis Total . | . . . . . . . . Derelict Logs Recovered 3 | . . 2 . 1 . . . Drone Launches . | . . . . . . . . Drone Recoveries . | . . . . . . . . Exploration | -11 -10 -10 -10 -9 -8 -8 -8 ------------- Run | Yrd Mat Min Exi Min Mat Sto Gar Turns Passed 1678 | 50 355 375 81 207 98 194 318 Spaces Moved 2126 | 44 292 397 208 366 164 330 325 Core 132 | 3 . 127 . . . 2 . Treads . | . . . . . . . . Legs . | . . . . . . . . Wheels 493 | 41 292 160 . . . . . Hover . | . . . . . . . . Flight 1501 | . . 110 208 366 164 328 325 Fastest Speed 29 | 50 100 37 37 37 31 29 29 Average Speed 52 | 96 100 79 37 37 33 32 30 Slowest Speed 250 | 100 100 100 37 37 37 250 111 Overloaded Moves . | . . . . . . . . Propulsion Burnouts . | . . . . . . . . Robots Hopped 11 | . . 1 . 2 3 5 . Cave-ins Triggered . | . . . . . . . . Exploration Rate (%) 48 | 3 54 74 61 69 22 65 40 Regions Visited 7 Branch Regions 4 Pre-discovered Areas 1 | . . . . . . 1 . Known Exits Taken 2 | . . . . . 1 1 . Unknown Exits Taken 5 | 1 1 1 1 1 . . . Scrap Searched 2 | . . 1 . 1 . . . Spaces Dug 4 | . . . . . 1 3 . Terrain Destroyed 4 | . . . . . 1 3 . Melee 4 | . . . . . 1 3 . Projectile . | . . . . . . . . AOE . | . . . . . . . . Terrain Rammed . | . . . . . . . . Walls Destroyed . | . . . . . . . . Machines Disabled . | . . . . . . . . Actions | -11 -10 -10 -10 -9 -8 -8 -8 --------- Run | Yrd Mat Min Exi Min Mat Sto Gar Total 2513 | 49 330 425 210 434 196 395 474 Wait 196 | . 11 7 . 64 21 48 45 Move 2098 | 43 291 394 207 361 157 320 325 Hop 10 | . . 1 . 2 3 4 . Pick Up 11 | 1 5 . 1 1 1 . 2 Fast Attach 27 | 5 6 3 . 3 4 5 1 Attach 11 | . 1 2 . . 3 1 4 Detach 8 | . . . . 1 2 2 3 Swap 9 | . 2 1 2 . . . 4 Drop 16 | . 3 2 . 2 1 4 4 Fire 26 | . 11 15 . . . . . Melee 58 | . . . . . 4 11 43 Ram . | . . . . . . . . Kick . | . . . . . . . . Crush . | . . . . . . . . Escape Stasis 43 | . . . . . . . 43 Rewire . | . . . . . . . . Trap . | . . . . . . . . Miscellaneous . | . . . . . . . . Route ------- -11/Scrapyard -10/Materials (discovered 2 exits: [*Mat] / [*Min]) -10/Mines (discovered 3 exits: [*Mat x2] / *Exi) -10/Exiles -9/Mines -8/Materials -8/Storage (discovered 2 exits: *Fac / Gar) -8/Garrison (discovered 1 exit: *Fac) History --------- Turn | Location | Event 17 | -11/Scrapyard | Discovered new exit (range 16) 51 | -11/Scrapyard | Entered Materials 246 | -10/Materials | Discovered new exit (range 10) 310 | -10/Materials | Build established: Mutant 398 | -10/Materials | Discovered new exit (range 9) 406 | -10/Materials | Entered Mines 433 | -10/Mines | Assembled infested the area 515 | -10/Mines | Learned Materials security intel 517 | -10/Mines | Discovered new exit (range 11) 636 | -10/Mines | Core integrity fell below 50% 637 | -10/Mines | Lost 3 parts (1p2n) 645 | -10/Mines | Core integrity fell below 20% 748 | -10/Mines | Discovered new exit (range 10) 780 | -10/Mines | Deemed a non-threat by the Exiles lab entrance 780 | -10/Mines | Discovered new exit (range 5) 781 | -10/Mines | Entered Exiles 790 | -10/Exiles | Met 8R-AWN 797 | -10/Exiles | Met EX-HEX 807 | -10/Exiles | Met EX-BIN 812 | -10/Exiles | Aligned with FarCom system 813 | -10/Exiles | Given EX-Vault access code 821 | -10/Exiles | Opened EX-Vault 823 | -10/Exiles | Found Prototype Special Weapon 824 | -10/Exiles | Identified Field Lobotomy Kit 835 | -10/Exiles | Warned to stay clear of 0b10 Research branches 845 | -10/Exiles | Met EX-DEC 858 | -10/Exiles | Discovered new exit (range 11) 862 | -10/Exiles | Left Exiles lab with Field Lobotomy Kit 862 | -10/Exiles | Entered Mines 870 | -9/Mines | Learned Materials emergency access door positions 901 | -9/Mines | Assisted by bots powering up and referring to "LRC-V3" 1038 | -9/Mines | Discovered new exit (range 13) 1045 | -9/Mines | Met a Derelict shopkeep closing up shop 1069 | -9/Mines | Entered Materials 1069 | -8/Materials | Accompanied by 3 allies 1069 | -8/Materials | Evolved 4 slots: Propulsion x2, Utility x2 1070 | -8/Materials | Identified exit to Storage 1103 | -8/Materials | Met 7R-MNS 1115 | -8/Materials | Garrison activated, responded to threat 1156 | -8/Materials | Lost 3 allies 1167 | -8/Materials | Entered Storage 1247 | -8/Storage | Learned location of Armory (-4) 1317 | -8/Storage | Identified exit to Factory 1322 | -8/Storage | Allied Derelicts emerged from ambush trap array 1336 | -8/Storage | Identified exit to Garrison 1361 | -8/Storage | Entered Garrison 1361 | -8/Garrison | Accompanied by 3 allies 1382 | -8/Garrison | Triggered checkpoint 1391 | -8/Garrison | Build established: Scavenger-Sprinter 1438 | -8/Garrison | Garrison Relay disabled 1486 | -8/Garrison | Triggered checkpoint 1577 | -8/Garrison | Discovered exit to Factory (range 19) 1602 | -8/Garrison | Triggered checkpoint 1653 | -8/Garrison | Core integrity fell below 50% 1664 | -8/Garrison | Lost 7 parts (1p4n1u1w) 1670 | -8/Garrison | Core integrity fell below 20% 1679 | -8/Garrison | Destroyed by P-60 Hacker with Shock Rifle Last Messages --------------- 01626_ Destroyed Lgt. Assault Rifle. 01626_ S-10 Pest system corrupted by crushing effect. 01627_ S-10 Pest system terminally corrupted. 01630_ Destroyed Gravmag System. 01630_ P-60 Hacker system corrupted by crushing effect. 01633_ Flight Unit destroyed. 01638_ Destroyed Shock Rifle. 01638_ P-60 Hacker system corrupted by crushing effect. 01638_ P-60 Hacker destroyed. 01641_ Dropped Adv. ECM Suite. 01647_ P-60 Hacker springs to life. 01654_ System corrupted: Energy discharge (-36). 01661_ P-60 Hacker knocked back. 01667_ Destroyed Remote Datajack. 01667_ P-60 Hacker system corrupted by crushing effect. 01669_ System corrupted: Matter fused (-5). Map ----- +----------------------------------------------------+ | ???????????????????????????????# #??????????? | | ???????????????????????????????# #??????????? | | ???????????????????????????????# #??????????? | | ???????????????????????????????# #??????????? | | ???????????????????????????????# #??????????? | | ???????????????????????????????# #??????????? | | ???????????????????????????????# #??????????? | | ???????????????????????????????# #??????????? | | ???????????????????????????????# #??????????? | | ???????????????????????????????# #??????????? | | ???????????????????????????????# #??????????? | | ???????????????????????????????# #??????????? | | ???????????????????????????????# #??????????? | | ??????????# ################# #??????????? | | ??????????# % #??????????? | | ??????????# #??????????? | | ?????????????????## ##### [!## #??????????? | | ??????????????????????????#%%=## #??????????? | | ??????????????????????????##[### #??????????? | | ???????????????????????????#*#?# #??????????? | | ???????????????????????????#!#?# #??????????? | | ???????????????????????????# #?# #????###???? | | ????????????????????#+###+## ### ######T##### | | ????????????????????# " " | | ????????????????????#p########## | | ????????????????????#!@#???????# s | | ????????????????????# p ??????############ # | | ????????????????????######????????????????# # | | ??????????????????????????????????????????" | | ??????????????????????????????????????????" | | ??????????????????????????????????????????" | | ??????????????????????????????????????????" | | ??????????????????????????????????????????# # | | ??????????????????????????????????????????# # | | ??????????????????????????????????????????# | | ??????????????????????????????????????????# | | ??????????????????????????????????????????# | | ??????????????????????????????????????????## # | | ???????????????????????????????????????????# # | | ??????????????????????????l?l??????????????? # | | ???????????????????????????????????????????? # | | ???????????????????????????????????????????? # | | ???????????????????????????????????????????? ? | | ??????????????????????????????????????????????? | | ??????????????????????????????????????????????? | | ??????????????????????????????????????????????? | | ??????????????????????????????????????????????? | | ??????????????????????????????????????????????? | | ??????????????????????????????????????????????? | | ??????????????????????????????????????????????? | +----------------------------------------------------+ Best States ------------- Heat Dissipation 31 Energy Generation 14 Energy Capacity 250 Matter Stores 300 Matter Capacity 300 Sight Range 20 Terrain Scan Density 10 Propulsion Shielding 66 Evasion (%) 64 Core Analysis 6 Item Schematics ----------------- Katana | -8/Materials | Hacked Chainsword | -8/Materials | Scanalyzed Robot Schematics ------------------ None Fabricated ------------ Nothing Alien Tech Used ----------------- None Achievements -------------- None Challenges ------------ None Game ------ Seed RecoilRagnarokDevice Manual? 0 Play Time 00:29:04 Cumulative 25.1 hours Start 2024.04.08 @ 01:07:12 End 2024.04.08 @ 01:36:06 Sessions 1 Manual Loads 0 Difficulty Rogue Special Mode None Game No. 35 Rogue 35 Adventurer 0 Explorer 0 Win Type - Total 0 Types 0/0/0/0/0/0/0/0/0 Lore% 13 Gallery% 29 Achievement% 23 Wizard Run 0 Options --------- Layout 1 ASCII 0 Keyboard 0 Movement Numpad Keybinds 0 Fullscreen 1 Font 24/Crisp Map View 50x35 Zoom Use 0% Tactical HUD 1 Map Filters NONE Filters NONE Steam 1 RUN: 9a22e23f-9b9b-47ae-9654-251ecaa301d9